fUST/lending_fUST_20240406
["ID","MTS","AMOUNT","RATE_DAILY","PERIOD"]
[321625411,1712339433315,-80.73966322,0.00043835,5]
[321625413,1712339433324,-500.0,0.00043835,5]
[321625415,1712339433333,-166.85308037,0.00043835,5]
[321625416,1712339433343,-738.29146695,0.00043835,5]
[321625879,1712339438119,-1418.9006751,0.00043832,2]
[321625885,1712339438176,-4095.15501812,0.00043832,2]
[321625887,1712339438185,-2109.12853305,0.00043835,5]
[321625889,1712339438194,-192.62211011,0.00043835,5]
[321626382,1712339443299,-162.01550394,0.00043395,3]
[321626384,1712339443308,-350.05880777,0.00043835,5]
[321627218,1712339857754,-435.31842404,0.00029999,2]
[321627219,1712339857779,-143.14807421,0.0003,2]
[321627220,1712339857814,-11.80543874,0.0003,2]
[321627227,1712340423202,-435.31842404,0.00027899,2]
[321627228,1712340423233,-138.29363152,0.000279,2]
[321627229,1712340423299,-11.70636848,0.000279,2]
[321627480,1712340638403,-150.0,0.000329,2]
[321627483,1712340638412,-112.3827165,0.00039899,4]
[321628061,1712340643450,-472.49808356,0.00039899,4]
[321628063,1712340643459,-269.650137,0.000399,2]
[321628065,1712340643472,-799.398,0.000399,2]
[321628067,1712340643487,-759.344898,0.000399,2]
[321629125,1712341838456,-1544.13388645,0.00037339,2]
[321629137,1712341838568,-2542.71577415,0.00037339,2]
[321629139,1712341838578,-1455.25334936,0.00037498,4]
[321629142,1712341838593,-299.50930159,0.00037498,4]
[321629143,1712341838602,-155.00155002,0.00037498,4]
[321629145,1712341838612,-4643.14159978,0.00037498,4]
[321629148,1712341838621,-1993.81941316,0.00037499,4]
[321629151,1712341838630,-721.874674,0.000375,4]
[321629154,1712341838639,-178.477364,0.00037502,2]
[321629157,1712341838648,-400.0,0.00037784,2]
[321629160,1712341838657,-1500.0,0.00037785,7]
[321629163,1712341838666,-14822.39138827,0.00037905,2]
[321629165,1712341838675,-1122.65022279,0.00038003,8]
[321629167,1712341838684,-700.5479373,0.00038103,2]
[321629169,1712341838694,-179.907739,0.00038125,120]
[321629171,1712341838703,-1122.65022273,0.00039605,9]
[321629173,1712341838712,-7170.32030699,0.000399,120]
[321629175,1712341838721,-553.74806188,0.000399,2]
[321629177,1712341838730,-3874.12308946,0.0004,120]
[321629179,1712341838739,-2050.31028775,0.0004013,2]
[321629181,1712341838748,-151.0,0.00040181,2]
[321629183,1712341838757,-1889.313474,0.00040181,2]
[321629185,1712341838766,-1889.313474,0.00040181,2]
[321629187,1712341838775,-950.3651552,0.00040604,2]
[321629189,1712341838784,-553.74806187,0.0004085,2]
[321629191,1712341838794,-166.666666,0.00041096,2]
[321629193,1712341838804,-1122.65022273,0.00041206,10]
[321629194,1712341838815,-250.0,0.00041562,3]
[321629196,1712341838824,-501.52013935,0.00041607,4]
[321629199,1712341838836,-553.74806187,0.000418,2]
[321629200,1712341838847,-174.63627849,0.00042,31]
[321629202,1712341838857,-166.666666,0.00042058,2]
[321629204,1712341838866,-553.74806187,0.0004275,2]
[321629206,1712341838875,-155.47187932,0.00042921,4]
[321629208,1712341838885,-379.754361,0.00042956,4]
[321629210,1712341838895,-166.666666,0.00043019,2]
[321629212,1712341838904,-162.0,0.00043282,31]
[321629214,1712341838914,-167.48685813,0.00043282,31]
[321629216,1712341838924,-151.0,0.00043283,7]
[321629218,1712341838933,-1889.313474,0.00043283,7]
[321629220,1712341838942,-1889.313474,0.00043283,7]
[321629222,1712341838951,-500.0,0.00043392,2]
[321629224,1712341838960,-1353.775,0.00043393,4]
[321629226,1712341838970,-162.2633904,0.00043394,3]
[321629228,1712341838980,-500.0,0.00043447,2]
[321629230,1712341838989,-500.0,0.00043501,2]
[321629232,1712341838998,-500.0,0.00043556,2]
[321629234,1712341839007,-410.433,0.00043562,30]
[321629236,1712341839017,-500.0,0.00043611,2]
[321629238,1712341839026,-345.39680604,0.00043666,2]
[321629240,1712341839035,-553.74806187,0.000437,2]
[321629242,1712341839044,-1500.0,0.00043735,2]
[321629244,1712341839054,-500.0,0.00043789,4]
[321629246,1712341839063,-287.96546735,0.00043797,4]
[321629248,1712341839072,-854.52847783,0.00043797,4]
[321629250,1712341839085,-151.0,0.00043797,7]
[321629252,1712341839094,-1889.313474,0.00043797,7]
[321629254,1712341839103,-1889.313474,0.00043797,7]
[321629256,1712341839112,-254.36473409,0.00043798,31]
[321629258,1712341839121,-182.12574367,0.00043798,31]
[321629260,1712341839130,-7678.03526613,0.00043799,2]
[321629384,1712341840556,-1501.60299005,0.00043799,2]
[321629386,1712341840568,-16836.23521095,0.00043799,2]
[321629998,1712341846596,-714.91197437,0.00042808,11]
[321630865,1712343032610,-155.0,0.00036134,4]
[321630866,1712343032620,-155.0,0.00036135,4]
[321630867,1712343032639,-19.0,0.00036164,2]
[321630868,1712343032654,-145.689341,0.00036164,2]
[321630869,1712343032664,-210.36588987,0.000378,2]
[321630870,1712343032674,-156.26428068,0.00037805,2]
[321630871,1712343032684,-210.36588986,0.00037805,2]
[321630872,1712343032693,-4643.14159978,0.00037904,4]
[321630873,1712343032704,-925.14294467,0.00037905,2]
[321630874,1712343032771,-325.14931429,0.00037905,2]
[321630875,1712343032781,-178.477364,0.00040709,2]
[321630876,1712343032791,-156.26428068,0.00040771,2]
[321630877,1712343032801,-162.052475,0.00040879,2]
[321630878,1712343032811,-45.50971573,0.00040941,2]
[321630882,1712343038684,-155.0,0.00036133,4]
[321630883,1712343038694,-106.49028427,0.00040941,2]
[321630885,1712343038703,-166.666666,0.00041096,2]
[321630886,1712343038713,-329.0,0.00041909,3]
[321630888,1712343038723,-500.0,0.0004191,7]
[321630890,1712343038732,-220.98775474,0.0004191,7]
[321631106,1712343040822,-279.01224526,0.0004191,7]
[321631108,1712343040832,-500.0,0.0004191,7]
[321631110,1712343040842,-414.22195366,0.0004191,7]
[321631112,1712343040851,-158.54580108,0.00042058,2]
[321631727,1712343048495,-8.12086492,0.00042058,2]
[321631728,1712343048504,-1078.01496724,0.00042807,4]
[321631935,1712344238051,-166.666666,0.00041797,2]
[321631938,1712344238061,-178.477364,0.0004252,2]
[321631940,1712344238070,-156.26428068,0.00042707,2]
[321631942,1712344238080,-3348.03222343,0.00042807,4]
[321631944,1712344238089,-155.24524274,0.00042807,4]
[321631946,1712344238099,-166.666666,0.00042936,2]
[321631948,1712344238108,-4682.53227659,0.000433,2]
[321632712,1712344243004,-587.3117954,0.000433,2]
[321632713,1712344243017,-762.7147044,0.000433,2]
[321632714,1712344243029,-769.98799988,0.000433,2]
[321633287,1712345438077,-154.98450155,0.00036162,4]
[321633289,1712345438086,-1256.39878313,0.00036163,4]
[321633291,1712345438096,-161.052631,0.00036164,2]
[321633293,1712345438106,-164.689341,0.00036164,2]
[321633295,1712345438115,-166.666666,0.00041096,2]
[321633297,1712345438124,-170.376589,0.00041551,2]
[321633299,1712345438133,-10289.5383597,0.00041747,2]
[321633301,1712345438143,-166.666666,0.00042198,2]
[321633303,1712345438153,-250.892451,0.0004251,5]
[321633305,1712345438162,-153.0,0.000426,2]
[321633307,1712345438173,-202.5506203,0.00042878,2]
[321633308,1712345438182,-153.0,0.00042878,2]
[321633310,1712345438192,-202.5506203,0.00042878,2]
[321633312,1712345438203,-153.0,0.00042878,2]
[321633314,1712345438214,-746.08770482,0.000429,11]
[321633316,1712345438228,-998.22560544,0.000429,2]
[321633319,1712345438239,-153.0,0.00042978,2]
[321633321,1712345438252,-202.5506203,0.00042978,2]
[321633323,1712345438263,-1608.82398873,0.00042998,4]
[321633324,1712345438276,-313.60605026,0.00042999,4]
[321633326,1712345438286,-57056.16280263,0.00043,2]
[321633328,1712345438296,-153.7652439,0.00043,2]
[321633330,1712345438305,-306.0,0.00043,2]
[321633332,1712345438314,-998.22560541,0.000431,2]
[321633334,1712345438323,-214.09171924,0.00043299,31]
[321633337,1712345438335,-208.72145662,0.00043299,31]
[321633339,1712345438344,-424.96006856,0.00043299,31]
[321633341,1712345438353,-998.22560541,0.000433,2]
[321633343,1712345438363,-124161.30055541,0.000433,2]
[321633518,1712345443143,-151.4181467,0.000412,2]
[321633519,1712345443154,-188.0568533,0.000433,2]
[321633520,1712345443254,-788.3856685,0.000433,2]
[321633966,1712346638253,-484.27597572,0.00036161,4]
[321633968,1712346638263,-668.95302428,0.00036162,4]
[321633979,1712346638362,-3006.888631,0.00036162,4]
[321634171,1712346881545,8182.73479991,0.0002509,2]
[321634172,1712346913150,154.98450155,0.0002509,2]
[321634173,1712346927164,155.27469245,0.0002509,2]
[321634189,1712347552000,183.12859904,0.0002299,2]
[321634190,1712347559374,-537.28100737,0.00027989,2]
[321634192,1712347573562,-154.98450155,0.00027989,2]
[321634194,1712347576753,-263.18571596,0.00027989,2]
[321634201,1712347607961,-154.98450155,0.00027989,2]
[321634202,1712347637773,-935.11966573,0.00027989,2]
[321634208,1712347753741,-214.64898184,0.00027989,2]
[321634239,1712347832436,-183.12859904,0.0002799,2]
[321634241,1712347832448,-154.98450155,0.0003,4]
[321634242,1712347832457,-294.2730885,0.0003247,2]
[321634243,1712347832466,-2809.38952332,0.00032827,4]
[321634244,1712347832476,-214.682302,0.00032829,2]
[321634245,1712347832486,-151.97819958,0.0003289,2]
[321634247,1712347832496,-183.12859904,0.0003299,2]
[321634249,1712347832506,-170.376589,0.00033267,2]
[321634251,1712347832515,-151.97819958,0.00033791,2]
[321634252,1712347832528,-1100.62795971,0.00033875,2]
[321634255,1712347832538,-746.08770482,0.00033875,6]
[321634257,1712347832548,-400.0,0.00033883,2]
[321634259,1712347832558,-176.7106089,0.00033884,2]
[321634328,1712347838449,-5407.0114717,0.00033884,2]
[321634329,1712347838462,-2930.64037406,0.00033917,4]
[321634330,1712347838472,-4630.11804381,0.00033928,2]
[321634331,1712347838481,-6848.58553433,0.00033948,4]
[321634332,1712347838489,-12034.6747229,0.00033975,2]
[321634333,1712347838499,-151.97819958,0.00034692,2]
[321634334,1712347838508,-5822.3716978,0.00035,4]
[321634335,1712347838517,-151.97819958,0.00035593,2]
[321634336,1712347838526,-746.08770477,0.00035832,7]
[321634337,1712347838535,-1100.62795968,0.00035881,2]
[321634338,1712347838545,-154.98450155,0.0003616,4]
[321634340,1712347838555,-1006.88733804,0.00036161,2]
[321634342,1712347838563,-363.03730881,0.00036161,15]
[321634344,1712347838573,-180.0,0.00036161,15]
[321634346,1712347838582,-21538.50799045,0.00036162,4]
[321634348,1712347838591,-644.57151629,0.00036162,4]
[321634350,1712347838600,-175.461048,0.00036164,2]
[321634352,1712347838610,-162.870986,0.00036164,2]
[321634354,1712347838620,-151.97819958,0.00036494,2]
[321634356,1712347838630,-150.98490151,0.00036563,4]
[321634358,1712347838639,-150.98490151,0.00037309,2]
[321634360,1712347838648,-151.97819958,0.00037395,2]
[321634362,1712347838658,-746.08770477,0.00037788,8]
[321634364,1712347838666,-1100.62795968,0.00037887,2]
[321634366,1712347838675,-151.97819958,0.00038296,2]
[321634368,1712347838685,-154.98450155,0.0003889,7]
[321634370,1712347838695,-151.97819958,0.00039197,2]
[321634372,1712347838704,-746.08770477,0.00039745,9]
[321634374,1712347838713,-1100.62795968,0.00039893,2]
[321634376,1712347838722,-4000.66004103,0.0004,7]
[321634378,1712347838731,-151.97819958,0.00040098,2]
[321634380,1712347838740,-424.96006856,0.00040898,31]
[321634382,1712347838750,-465.12119459,0.00040898,31]
[321634385,1712347838759,-500.0,0.00040898,31]
[321634386,1712347838769,-256.20285443,0.00040898,31]
[321634388,1712347838778,-277.719242,0.00040899,2]
[321634390,1712347838787,-10000.0,0.000409,3]
[321634392,1712347838796,-151.0,0.000409,2]
[321634394,1712347838805,-151.0,0.000409,2]
[321634396,1712347838814,-151.97819958,0.00040999,2]
[321634398,1712347838823,-231.22093626,0.00041095,4]
[321634400,1712347838833,-166.666666,0.00041096,2]
[321634402,1712347838841,-151.0,0.00041096,7]
[321634404,1712347838850,-500.0,0.00041096,31]
[321634406,1712347838861,-500.0,0.00041096,31]
[321634408,1712347838870,-500.0,0.00041096,31]
[321634410,1712347838879,-500.0,0.00041096,31]
[321634412,1712347838888,-500.0,0.00041096,31]
[321634414,1712347838897,-500.0,0.00041096,31]
[321634416,1712347838906,-500.0,0.00041096,31]
[321634418,1712347838915,-500.0,0.00041096,31]
[321634420,1712347838924,-500.0,0.00041096,31]
[321634422,1712347838933,-500.0,0.00041096,31]
[321634424,1712347838943,-500.0,0.00041096,31]
[321634426,1712347838951,-286.78620656,0.00041096,31]
[321634428,1712347838961,-500.0,0.00041096,31]
[321634430,1712347838970,-500.0,0.00041096,31]
[321634432,1712347838979,-500.0,0.00041096,31]
[321634434,1712347838988,-500.0,0.00041096,31]
[321634436,1712347838998,-277.719242,0.00041096,7]
[321634438,1712347839008,-151.0,0.00041108,7]
[321634440,1712347839017,-150.98490151,0.00041454,2]
[321634442,1712347839026,-250.46583342,0.00041454,2]
[321634444,1712347839036,-153.0,0.00041562,2]
[321634446,1712347839047,-306.0,0.00041656,2]
[321634448,1712347839056,-746.08770477,0.00041701,10]
[321634450,1712347839067,-153.0,0.00041856,2]
[321634452,1712347839076,-153.0,0.00041856,2]
[321634454,1712347839085,-155.40680754,0.00041897,4]
[321634456,1712347839094,-535.29059525,0.00041897,4]
[321634458,1712347839103,-155.35037099,0.00041897,4]
[321634460,1712347839112,-446.15234761,0.00041897,4]
[321634462,1712347839121,-928.5776296,0.00041897,4]
[321634464,1712347839130,-151.0,0.00041897,7]
[321634466,1712347839139,-276.05141,0.00041897,7]
[321634468,1712347839148,-151.0,0.00041897,7]
[321634470,1712347839157,-277.719242,0.00041897,7]
[321634472,1712347839167,-1096.54941034,0.00041898,7]
[321634474,1712347839176,-1808.851362,0.00041899,7]
[321634476,1712347839186,-1808.851362,0.00041899,7]
[321634478,1712347839196,-1100.62795968,0.00041899,2]
[321634480,1712347839205,-1500.0,0.000419,2]
[321634482,1712347839214,-151.0,0.000419,7]
[321634484,1712347839222,-151.0,0.000419,7]
[321634486,1712347839232,-151.0,0.000419,7]
[321634488,1712347839241,-151.97819958,0.000419,2]
[321634490,1712347839250,-1250.9928779,0.00041997,4]
[321634492,1712347839260,-155.01705188,0.00041998,4]
[321634494,1712347839269,-1608.82398873,0.00041998,4]
[321634496,1712347839279,-313.60605026,0.00041998,4]
[321634498,1712347839287,-151.0,0.00041998,7]
[321634500,1712347839296,-277.719242,0.00041998,7]
[321634502,1712347839306,-1327.41,0.00041999,7]
[321634504,1712347839315,-1327.41,0.00041999,7]
[321634506,1712347839324,-1327.41,0.00041999,7]
[321634508,1712347839333,-1327.41,0.00041999,7]
[321634509,1712347839343,-1327.41,0.00041999,7]
[321634511,1712347839353,-1327.41,0.00041999,7]
[321634513,1712347839363,-1327.41,0.00041999,7]
[321634515,1712347839372,-1327.41,0.00041999,7]
[321634517,1712347839383,-1327.41,0.00041999,7]
[321634519,1712347839391,-151.0,0.00041999,7]
[321634521,1712347839400,-151.0,0.00041999,7]
[321634523,1712347839409,-151.0,0.00041999,7]
[321634525,1712347839418,-1808.851362,0.00041999,7]
[321634527,1712347839427,-1808.851362,0.00041999,7]
[321634529,1712347839435,-1808.851362,0.00041999,7]
[321634531,1712347839446,-1808.851362,0.00041999,7]
[321634533,1712347839458,-151.0,0.00041999,7]
[321634535,1712347839467,-151.0,0.00041999,7]
[321634537,1712347839476,-151.0,0.00041999,7]
[321634539,1712347839485,-291.792691,0.00041999,7]
[321634541,1712347839494,-277.719242,0.00041999,7]
[321634543,1712347839503,-133644.22579255,0.00042,5]
[321634545,1712347839513,-4720.82768262,0.00042,5]
[321634547,1712347839526,-75660.60325116,0.00042,5]
[321634550,1712347839538,-15781.76145856,0.00042,5]
[321634656,1712347840586,-277.719242,0.00040899,2]
[321634658,1712347840596,-277.719242,0.00041096,7]
[321634660,1712347840605,-277.719242,0.00041897,7]
[321634662,1712347840614,-277.719242,0.00041998,7]
[321634664,1712347840623,-277.719242,0.00041999,7]
[321634666,1712347840633,-1686.09569042,0.00042,5]
[321634668,1712347840645,-3342.26104208,0.00042,5]
[321634945,1712347843531,-302.61772616,0.00042,5]
[321634948,1712347843543,-329.46187195,0.00042,5]
[321634950,1712347843555,-365.9201461,0.00042,5]
[321634954,1712347843586,-4725.10773749,0.00042,5]
[321635262,1712347846545,-255.14854022,0.00041999,4]
[321635264,1712347846554,-222537.44114632,0.00042,5]
[321635266,1712347846563,-151.0,0.00042,7]
[321635268,1712347846573,-151.0,0.00042,7]
[321635270,1712347846582,-151.0,0.00042,7]
[321635272,1712347846592,-151.0,0.00042,7]
[321635275,1712347846601,-1808.851362,0.00042,7]
[321635277,1712347846611,-1808.851362,0.00042,7]
[321635279,1712347846620,-1808.851362,0.00042,7]
[321635281,1712347846630,-1808.851362,0.00042,7]
[321635282,1712347846639,-151.0,0.00042,7]
[321635285,1712347846648,-277.719242,0.00042,7]
[321635287,1712347846657,-277.719242,0.00042,7]
[321635289,1712347846666,-277.719242,0.00042,7]
[321635291,1712347846675,-277.719242,0.00042,7]
[321635292,1712347846686,-166.84591227,0.00042001,2]
[321635295,1712347846697,-166.666666,0.00042058,2]
[321635296,1712347846707,-301.96980302,0.00042151,4]
[321635298,1712347846717,-153.0,0.00042658,2]
[321635300,1712347846727,-153.756453,0.0004274,2]
[321635303,1712347846737,-153.0,0.0004274,2]
[321635305,1712347846745,-1808.851362,0.00042789,7]
[321635307,1712347846754,-1808.851362,0.00042789,7]
[321635309,1712347846763,-277.719242,0.00042789,7]
[321635311,1712347846772,-277.719242,0.00042789,7]
[321635313,1712347846782,-151.0,0.0004279,7]
[321635315,1712347846791,-16576.340195,0.000428,4]
[321635317,1712347846799,-151.0,0.000428,7]
[321635319,1712347846809,-151.0,0.000428,7]
[321635321,1712347846818,-1808.851362,0.000428,7]
[321635323,1712347846827,-1808.851362,0.000428,7]
[321635325,1712347846836,-277.719242,0.000428,7]
[321635326,1712347846845,-277.719242,0.000428,7]
[321635328,1712347846855,-603.93960604,0.00042859,7]
[321635330,1712347846866,-162.26339041,0.00042866,3]
[321635333,1712347846875,-413.8776334,0.00042921,4]
[321635335,1712347846885,-150.489,0.00042927,2]
[321635337,1712347846895,-331.41593695,0.00042998,4]
[321635339,1712347846904,-169.34638279,0.00042999,4]
[321635341,1712347846913,-151.0,0.00042999,7]
[321635343,1712347846922,-151.0,0.00042999,7]
[321635345,1712347846931,-151.0,0.00042999,7]
[321635347,1712347846941,-151.0,0.00042999,7]
[321635349,1712347846950,-27599.54297515,0.00043,2]
[321635351,1712347846959,-650.000001,0.00043,4]
[321635353,1712347846968,-50000.63259352,0.00043,30]
[321635355,1712347846977,-151.4605,0.00043,7]
[321635357,1712347846986,-151.4605,0.00043,7]
[321635359,1712347846995,-151.4605,0.00043,7]
[321635361,1712347847005,-151.4605,0.00043,7]
[321635363,1712347847014,-151.0,0.00043,7]
[321635365,1712347847024,-151.0,0.00043,7]
[321635367,1712347847035,-151.0,0.00043,7]
[321635369,1712347847046,-151.0,0.00043,7]
[321635371,1712347847054,-1808.851362,0.00043,7]
[321635373,1712347847063,-1808.851362,0.00043,7]
[321635375,1712347847072,-1808.851362,0.00043,7]
[321635377,1712347847082,-1808.851362,0.00043,7]
[321635379,1712347847092,-277.719242,0.00043,7]
[321635381,1712347847101,-277.719242,0.00043,7]
[321635383,1712347847111,-166.666666,0.00043019,2]
[321635385,1712347847121,-2021.36018187,0.00043299,4]
[321635387,1712347847131,-151.0,0.00043299,7]
[321635389,1712347847140,-151.0,0.00043299,7]
[321635391,1712347847149,-1808.851362,0.00043299,7]
[321635393,1712347847159,-1808.851371,0.00043299,7]
[321635395,1712347847170,-159644.99395449,0.000433,2]
[321637436,1712347868831,-256.0470309,0.00027989,2]
[321637442,1712347868883,-5.22544961,0.00027989,2]
[321641118,1712347944450,-155.45143048,0.00027989,2]
[321641119,1712347944477,-148.77578291,0.00027989,2]
[321641120,1712347944554,-6.20871864,0.00027989,2]
[321641121,1712347960664,-248.62583471,0.00027989,2]
[321641122,1712347960775,-5.07399663,0.00027989,2]
[321641126,1712348134515,-1572.3542564,0.0003,2]
[321641127,1712348134616,-32.08886237,0.0003,2]
[321641167,1712349032640,-446.39896305,0.00036158,4]
[321641168,1712349032652,-478.47171543,0.00036158,4]
[321641169,1712349032661,-1267.75272725,0.00036159,4]
[321641222,1712349038741,-726.06668591,0.00036159,4]
[321641224,1712349038751,-379.43019025,0.0003616,4]
[321641227,1712349038761,-175.461048,0.00036164,2]
[321641229,1712349038770,-157.4203422,0.00040444,7]
[321641231,1712349038781,-171.856805,0.00040445,2]
[321641232,1712349038795,-214.682302,0.00040484,2]
[321641235,1712349038805,-14793.28262668,0.00040572,2]
[321641475,1712349046094,212.69585131,0.0003,30]
[321641538,1712350231881,-166.12277244,0.00038595,2]
[321641540,1712350231890,-140.57692445,0.00038692,4]
[321641542,1712350231903,-72.13652025,0.00038692,4]
[321641544,1712350231911,-2635.47972439,0.00038692,4]
[321641546,1712350231920,-701.19315383,0.00038692,4]
[321641548,1712350231929,-4643.14159978,0.00038692,4]
[321641550,1712350231939,-155.00155002,0.00038693,4]
[321641552,1712350231947,-2170.19509396,0.00038693,4]
[321641554,1712350231956,-155.00155002,0.00038694,4]
[321641556,1712350231965,-547.13300949,0.00038694,4]
[321641558,1712350231974,-155.00155002,0.00038694,4]
[321641560,1712350231983,-704.16191924,0.00038695,4]
[321641561,1712350231992,-5013.64543027,0.00038696,4]
[321641563,1712350232002,-20396.2557331,0.00038715,2]
[321641565,1712350232010,-279.78288935,0.00038762,9]
[321641567,1712350232019,-171.856805,0.00038862,2]
[321641569,1712350232028,-5000.0,0.00039875,2]
[321641571,1712350232037,-279.78288928,0.00040138,9]
[321641573,1712350232046,-1872.92030932,0.00040567,4]
[321641575,1712350232055,-203.2653125,0.00040572,4]
[321641578,1712350232065,-202.17296299,0.00040753,4]
[321641579,1712350232074,-166.666666,0.00041096,2]
[321641582,1712350232084,-250.892451,0.00041488,4]
[321641584,1712350232093,-279.78288928,0.00041514,10]
[321641586,1712350232103,-1194.53333894,0.00041999,4]
[321641587,1712350232112,-155.55365942,0.00041999,4]
[321641588,1712350232122,-369.16586071,0.00042057,4]
[321641590,1712350232131,-166.666666,0.00042058,2]
[321641592,1712350232141,-153.0,0.00042466,2]
[321641594,1712350232150,-153.0,0.00042466,2]
[321641596,1712350232165,-201.4924572,0.00042521,2]
[321641598,1712350232175,-153.0,0.00042548,2]
[321641599,1712350232183,-202.5506203,0.00042548,2]
[321641600,1712350232192,-153.0,0.00042548,2]
[321641602,1712350232203,-202.5506203,0.00042548,2]
[321641604,1712350232212,-153.0,0.00042548,2]
[321641606,1712350232221,-153.0,0.00042548,2]
[321641608,1712350232231,-153.0,0.00042548,2]
[321641609,1712350232242,-179.8671926,0.00042548,2]
[321641611,1712350232251,-153.0,0.00042712,2]
[321641613,1712350232261,-153.0,0.00042712,2]
[321641615,1712350232271,-153.0,0.00042712,2]
[321641617,1712350232281,-153.0,0.0004274,2]
[321641618,1712350232291,-1500.0,0.000428,2]
[321641619,1712350232301,-162.01550394,0.00042866,3]
[321641620,1712350232310,-279.78288928,0.0004289,11]
[321641621,1712350232320,-464.15092473,0.00042898,4]
[321641622,1712350232330,-156.82738471,0.00042898,4]
[321641623,1712350232340,-155.37757037,0.00042898,4]
[321641624,1712350232349,-608.75435439,0.00042898,4]
[321641625,1712350232360,-1137.43677143,0.00042898,4]
[321641626,1712350232370,-2248.1300057,0.00042898,4]
[321641627,1712350232380,-238.07212372,0.00042898,4]
[321641628,1712350232390,-946.27473759,0.00042898,4]
[321641629,1712350232399,-155.92399903,0.00042898,4]
[321641630,1712350232409,-946.2345102,0.00042898,4]
[321641631,1712350232418,-314.67277252,0.00042898,4]
[321641632,1712350232429,-275.44948254,0.00042898,4]
[321641633,1712350232438,-301.5324189,0.00042898,4]
[321641634,1712350232447,-175.80378152,0.00042898,7]
[321641635,1712350232455,-155.27032593,0.00042898,4]
[321641636,1712350232463,-181.17160852,0.00042898,4]
[321641637,1712350232472,-171.97697805,0.00042898,4]
[321641638,1712350232481,-458.85729217,0.00042898,4]
[321641639,1712350232491,-1585.48245161,0.00042898,4]
[321641640,1712350232501,-155.89703315,0.00042898,4]
[321641641,1712350232511,-319.68340137,0.00042898,4]
[321641642,1712350232521,-299.00133078,0.00042898,4]
[321641643,1712350232531,-264.27503188,0.00042898,4]
[321641644,1712350232539,-192.83927752,0.00042898,4]
[321641645,1712350232548,-299.86293489,0.00042898,4]
[321641646,1712350232557,-1360.16578383,0.00042898,4]
[321641647,1712350232568,-500.0,0.00042898,31]
[321641648,1712350232577,-324.08693761,0.00042898,31]
[321641649,1712350232586,-500.0,0.00042898,31]
[321641650,1712350232595,-500.0,0.00042898,31]
[321641651,1712350232604,-500.0,0.00042898,31]
[321641652,1712350232614,-7353.49284095,0.00042899,2]
[321641659,1712350238004,-336.03586197,0.00042898,31]
[321641660,1712350238017,-5372.25901264,0.00042899,2]
[321641661,1712350238033,-11822.53809537,0.00042899,2]
[321641662,1712350238051,-802.40983712,0.00042899,2]
[321641680,1712350240249,13900.30305305,0.0003,30]
[321641704,1712350477089,-294.0,0.0002877,2]
[321641705,1712350477129,-6.0,0.0002877,2]
[321641776,1712351432034,-155.0,0.00036148,4]
[321641778,1712351432043,-155.0,0.00036149,4]
[321641780,1712351432053,-162.870986,0.00036164,2]
[321641782,1712351432062,-2469.6463664,0.00040985,4]
[321642571,1712351446421,2313.00109564,0.0003,30]
[321642589,1712351446708,-8442.41760516,0.0003,30]
[321642594,1712351446739,-172.29423684,0.0003,30]
[321644135,1712351499466,-507.95720762,0.0003,4]
[321644136,1712351499567,-10.36647362,0.0003,4]
[321644142,1712351831489,500.0,0.00026,10]
[321644200,1712352632238,-489.9999995,0.00039,4]
[321644376,1712352638484,-1492.29792023,0.00039,4]
[321644594,1712352640395,-442.33510824,0.00039,4]
[321644601,1712352640454,-2736.47412689,0.00039,4]
[321644604,1712352640465,-151.0,0.00039,2]
[321644606,1712352640475,-3011.97682787,0.00040841,4]
[321644608,1712352640485,-833.43194973,0.00040842,2]
[321644610,1712352640495,-166.12277244,0.00040868,2]
[321644611,1712352640505,-269.731899,0.00040965,2]
[321644613,1712352640515,-1944.25764749,0.00040983,4]